Cogmind - Beta 14 @@@ ROGUE MODE // 2024.08.10 @ 22:40:21 Player: A Moose Result: Destroyed by FY-L84(R) with Subdweller Machine Gun Performance ------------- Evolutions (0) 0 Regions Visited (2) 400 Robots Destroyed (27) 135 Value Destroyed (566) 566 Prototype IDs (4) 80 Alien Tech Used (0) 0 Bonus (0) 0 TOTAL SCORE: 1181 Bonus ------- None Cogmind --------- Core Integrity 0/250 Matter 290/300 Energy 93/125 System Corruption 0% Temperature Cool (0) Movement Rolling (95) Ox1 Location -10/Subcaves Parts ------- > --- POWER (1) -------- Light Ion Engine > --- PROPULSION (2) --- Wheel Wheel > --- UTILITY (2) ------ Scrap Shield > --- WEAPON (2) ------- EM Pulse Gun Particle Gun > --- INVENTORY (5) ---- Subdweller Power Source Wheel Subdweller Monowheel High-capacity Matter Pod (200) Terrain Scanner Peak State ------------ > --- POWER ------------ Light Nuclear Core > --- PROPULSION ------- Wheel Wheel > --- UTILITY ---------- Medium Storage Unit Terrain Scanner > --- WEAPON ----------- Particle Gun Assault Rifle > --- INVENTORY -------- Light Ion Engine Light Ion Engine Light Ion Engine Wheel Wheel Wheel Heat Sink High-capacity Matter Pod Signal Interpreter EM Pulse Gun [Rating: 11] Favorites ----------- Power Light Nuclear Core Engine Light Ion Engine Power Core Light Nuclear Core Propulsion Wheel Wheel Wheel Utility Medium Storage Unit Device Terrain Scanner Storage Medium Storage Unit Processor Signal Interpreter Protection Light Armor Plating Weapon Assault Rifle Energy Gun Particle Gun Ballistic Gun Assault Rifle Launcher Grenade Launcher Build | -11 -10 -10 ------- Run | Yrd Mat Sub Slots Evolved . | . . . Power . | . . . Propulsion . | . . . Utility . | . . . Weapon . | . . . Parts Attached 22 | 6 12 4 Power 3 | 1 1 1 Engine 2 | 1 . 1 Core 1 | . 1 . Reactor . | . . . Propulsion 3 | 2 1 . Treads . | . . . Leg . | . . . Wheel 3 | 2 1 . Hover . | . . . Flight . | . . . Utility 7 | 1 4 2 Device 2 | . 2 . Storage 2 | 1 1 . Processor 1 | . 1 . Hackware . | . . . Protection 2 | . . 2 Artifact . | . . . Weapon 9 | 2 6 1 Energy Gun 2 | . 1 1 Energy Cannon . | . . . Ballistic Gun 4 | 2 2 . Ballistic Cannon . | . . . Launcher 3 | . 3 . Special Weapon . | . . . Impact Weapon . | . . . Slashing Weapon . | . . . Piercing Weapon . | . . . Special Melee Weapon . | . . . Unidentified Prototypes . | . . . Parts Lost 5 | . 3 2 Power 2 | . 1 1 Propulsion . | . . . Utility 1 | . 1 . Weapon 2 | . 1 1 Highest Loss Streak 2 | . 2 1 To Critical Strikes . | . . . Average Slot Usage (%) 98 | . 98 99 Engine 4 | . 3 8 Core 9 | . 10 5 Wheel 28 | . 28 28 Device 10 | . 11 5 Storage 14 | . 14 14 Protection 2 | . . 8 Energy Gun 12 | . 10 20 Ballistic Gun 15 | . 17 7 Peak Build Rating 11 | 6 11 11 Average Rating 9 | 3 9 9 On Entrance 5 | . 6 11 Naked Turns . | . . . Heaviest Build 21 | 11 21 21 Greatest Support 20 | 20 20 20 Greatest Overweight (x) 1 | . 1 1 Average Overweight (x) . | . . . Largest Inventory Capacity 10 | 8 10 10 Average Capacity 9 | 7 9 9 Most Carried 10 | 7 10 10 Average Carried 9 | 3 9 9 Final Capacity 10 | 8 10 5 Final Carried 10 | 4 10 5 Class Distribution -------------------- 100% | Mutant Dominant Class ---------------- Mutant | -10/Materials Mutant | -10/Subcaves Resources | -11 -10 -10 ----------- Run | Yrd Mat Sub Matter Collected 807 | 223 548 36 Remotely . | . . . Salvage Created 747 | . 547 200 Parts 63 | . 52 11 Haulers Intercepted . | . . . Recyclers Shooed 1 | . 1 . Parts Field Recycled . | . . . Retrieved Matter . | . . . Parts Self-Destructed 12 | . . 12 Prevented . | . . . Kills | -11 -10 -10 ------- Run | Yrd Mat Sub Combat Hostiles Destroyed 14 | . 10 4 Guns 8 | . 4 4 AOE 6 | . 6 . Classes Destroyed 8 | . 7 1 Worker 2 | . 2 . Builder 6 | . 6 . Recycler 1 | . 1 . Operator 2 | . 2 . Watcher 2 | . 2 . Swarmer 3 | . 3 . Grunt 7 | . 7 . Subdweller 4 | . . 4 Best Kill Streak 9 | . 9 1 Combat Bots Only 7 | . 7 1 Max Kills in Single Turn 3 | . 3 1 Gunslinging . | . . . Exploded 2 | . 2 . Melee . | . . . Uniques/NPCs Destroyed . | . . . Combat | -11 -10 -10 -------- Run | Yrd Mat Sub Hostile Shots Fired 80 | . 52 28 Missed 25 | . 14 11 Damage Taken 817 | . 462 355 Core 257 | . 174 83 Absorbed by Shields . | . . . Core Remaining (%) 100 | 100 . . Volleys Fired 61 | . 44 17 Largest 2 | . 2 2 Hottest 105 | . 85 105 Shots Fired 114 | . 87 27 Gun 108 | . 81 27 Cannon . | . . . Launcher 6 | . 6 . Special . | . . . Kinetic 67 | . 65 2 Thermal 26 | . 16 10 Explosive 6 | . 6 . Electromagnetic 15 | . . 15 Robot Hit Streak 12 | . 6 12 Robot Miss Streak 4 | . 4 1 Penetration Max . | . . . Secondary Targets 1 | . . 1 Max Gunslinging Chain 1 | . . 1 Shots Hit Robots 70 | . 46 24 Core Hits 44 | . 36 8 Critical Kills . | . . . Critical Parts Destroyed 1 | . 1 . Critical Strikes 1 | . 1 . Destroy 1 | . 1 . Melee Attacks . | . . . Impact . | . . . Slashing . | . . . Piercing . | . . . Sneak Attacks . | . . . Combat Hostiles . | . . . Follow-up Attacks . | . . . Damage Inflicted 1248 | . 929 319 Guns 847 | . 528 319 Cannons . | . . . Explosions 401 | . 401 . Melee . | . . . Ramming . | . . . Kinetic 427 | . 400 27 Thermal 285 | . 128 157 Explosive 401 | . 401 . Electromagnetic 135 | . . 135 Impact . | . . . Slashing . | . . . Piercing . | . . . Highest Corruption . | . . . Average Corruption . | . . . Corruption Purged . | . . . Corruption Blocked . | . . . Overload Shots . | . . . Overflow Damage . | . . . Projectiles . | . . . Explosions . | . . . Melee . | . . . Knockbacks . | . . . Impact . | . . . Kinetic . | . . . Secondary . | . . . Self-Inflicted Damage 6 | . 6 . Shots 1 | . 1 . Rammed . | . . . Targets Rammed . | . . . Kicked . | . . . Crushed . | . . . Highest Temperature 180 | . 180 . Average Temperature 46 | . 46 . Received Heat Transfer 219 | . 213 6 Siege Activations . | . . . Robots Corrupted . | . . . Combat Hostiles . | . . . Parts Fried . | . . . Impact Corruptions . | . . . Robots Melted . | . . . Combat Hostiles . | . . . Parts Melted . | . . . Heat Transferred 666 | . 296 370 Parts Sabotaged . | . . . Parts Stolen . | . . . Parts Stripped . | . . . Power Chain Reactions . | . . . Alert | -11 -10 -10 ------- Run | Yrd Mat Sub Peak Influence 360 | . 360 . Initial . | . . . Average 116 | . 121 . Maximum Alert Level 1 | . 1 . Low Security (%) 93 | 100 93 . Level 1 6 | . 6 . Level 2 . | . . . Level 3 . | . . . Level 4 . | . . . Level 5 . | . . . High Security . | . . . Max Security . | . . . Squads Dispatched 3 | . 3 . Investigation 1 | . 1 . Extermination . | . . . Reinforcement 2 | . 2 . Assault . | . . . Garrison . | . . . Intercept . | . . . Searches Triggered . | . . . Construction Impeded . | . . . Haulers Reinforced . | . . . Active Scanning Responses . | . . . Cargo Convoy Interrupts . | . . . Stealth | -11 -10 -10 --------- Run | Yrd Mat Sub Distress Signals 1 | . 1 . Communications Jammed . | . . . Distress Signals . | . . . Times Spotted 25 | . 18 7 Peak Tracking Total 5 | . 5 3 Tactical Retreats 2 | . 1 1 Traps | -11 -10 -10 ------- Run | Yrd Mat Sub Traps Triggered . | . . . Indirectly . | . . . Trap Hack Attempts . | . . . Triggered . | . . . Disarmed . | . . . Reprogrammed . | . . . Reused . | . . . Traps Extracted . | . . . Installed . | . . . Triggered . | . . . Machines | -11 -10 -10 ---------- Run | Yrd Mat Sub Machines Disabled 1 | . 1 . Max in Single Turn 1 | . 1 . Machines Repaired . | . . . Machines Dismantled . | . . . Machines Sabotaged . | . . . Overloaded Fab Kills . | . . . Hacking | -11 -10 -10 --------- Run | Yrd Mat Sub Machines Accessed 5 | . 5 . Terminals 5 | . 5 . Fabricators . | . . . Repair Stations . | . . . Recycling Units . | . . . Scanalyzers . | . . . Garrison Access . | . . . Total Hacks 18 | . 18 . Successful 9 | . 9 . Failed 9 | . 9 . Catastrophic 1 | . 1 . Database Lockouts . | . . . Manual 11 | . 11 . Terminals 18 | . 18 . Fabricators . | . . . Repair Stations . | . . . Recycling Units . | . . . Scanalyzers . | . . . Garrison Access . | . . . Terminal Hacks 7 | . 7 . Robot Analysis 1 | . 1 . Prototype ID Bank 2 | . 2 . Branch Access Points 1 | . 1 . Emergency Access Points 1 | . 1 . Locate Traps 1 | . 1 . Zone Layout 1 | . 1 . Fabricator Hacks . | . . . Repair Station Hacks . | . . . Recycling Unit Hacks . | . . . Scanalyzer . | . . . Garrison Access Hacks . | . . . Unauthorized Hacks 2 | . 2 . Terminals 2 | . 2 . Botnet 2 | . 2 . Fabricators . | . . . Repair Stations . | . . . Recycling Units . | . . . Scanalyzers . | . . . Garrison Access . | . . . Data Cores Recovered 1 | . 1 . Used 1 | . 1 . Hacking Detections 5 | . 5 . Full Trace Events 1 | . 1 . Feedback Events . | . . . Feedback Blocked . | . . . Robot Schematics Acquired . | . . . Robots Built . | . . . Authchips . | . . . Time . | . . . Total Robot Build Rating . | . . . Part Schematics Acquired . | . . . Parts Built . | . . . Authchips . | . . . Time . | . . . Total Part Build Rating . | . . . Parts Repaired . | . . . Time . | . . . Parts Recycled . | . . . Recycled Matter . | . . . Retrieved Matter . | . . . Retrieved Components . | . . . Parts Scanalyzed . | . . . Part Schematics Acquired . | . . . Parts Damaged . | . . . Bothacking | -11 -10 -10 ------------ Run | Yrd Mat Sub Used RIF Installer . | . . . Robots Hacked . | . . . Non-combat . | . . . Combat . | . . . Robot Hacks Applied . | . . . Relay Couplers Released . | . . . Fabnet Peak Effective % . | . . . Robots Rewired . | . . . Allies Hacked . | . . . Hacks Repelled . | . . . Allies | -11 -10 -10 -------- Run | Yrd Mat Sub Total Allies . | . . . Largest Group . | . . . Highest-Rated Group . | . . . Highest-Rated Ally . | . . . Total Orders . | . . . Ally Attacks . | . . . Total Damage . | . . . Kills . | . . . Allies Corrupted . | . . . Allies Melted . | . . . Intel | -11 -10 -10 ------- Run | Yrd Mat Sub Robot Analysis Total 1 | . 1 . Derelict Logs Recovered 1 | . . 1 Drone Launches . | . . . Drone Recoveries . | . . . Exploration | -11 -10 -10 ------------- Run | Yrd Mat Sub Turns Passed 1656 | 47 1225 384 Spaces Moved 966 | 41 592 333 Core 5 | 5 . . Treads . | . . . Legs . | . . . Wheels 961 | 36 592 333 Hover . | . . . Flight . | . . . Fastest Speed 50 | 50 80 80 Average Speed 89 | 76 87 93 Slowest Speed 95 | 80 95 95 Overloaded Moves . | . . . Propulsion Burnouts . | . . . Robots Hopped . | . . . Cave-ins Triggered . | . . . Exploration Rate (%) 31 | 4 66 24 Regions Visited 2 Branch Regions 1 Pre-discovered Areas 1 | . . 1 Known Exits Taken . | . . . Unknown Exits Taken 2 | 1 1 . Scrap Searched . | . . . Spaces Dug 8 | . 8 . Terrain Destroyed 29 | . 29 . Melee . | . . . Projectile . | . . . AOE 29 | . 29 . Terrain Rammed . | . . . Walls Destroyed . | . . . Machines Disabled . | . . . Actions | -11 -10 -10 --------- Run | Yrd Mat Sub Total 1651 | 56 1214 381 Wait 565 | . 544 21 Move 964 | 40 591 333 Hop . | . . . Pick Up 28 | 10 15 3 Fast Attach 4 | . 3 1 Attach 10 | 6 2 2 Detach 1 | . 1 . Swap 8 | . 7 1 Drop 10 | . 7 3 Fire 61 | . 44 17 Melee . | . . . Ram . | . . . Kick . | . . . Crush . | . . . Escape Stasis . | . . . Rewire . | . . . Trap . | . . . Miscellaneous . | . . . Route ------- -11/Scrapyard -10/Materials (discovered 3 exits: [*Mat] / Min / [*Sub]) -10/Subcaves History --------- Turn | Location | Event 8 | -11/Scrapyard | Discovered new exit (range 15) 48 | -11/Scrapyard | Entered Materials 121 | -10/Materials | Identified exit to Mines 326 | -10/Materials | Build established: Mutant 344 | -10/Materials | Core integrity fell below 50% 420 | -10/Materials | Discovered new exit (range 4) 423 | -10/Materials | Destroyed 7 combat bots 928 | -10/Materials | Discovered new exit (range 4) 1273 | -10/Materials | Entered Subcaves 1460 | -10/Subcaves | Ambushed by Subdwellers from Twisted Machinery 1501 | -10/Subcaves | Core integrity fell below 20% 1573 | -10/Subcaves | Learned location of Mines (-9) 1657 | -10/Subcaves | Destroyed by FY-L84(R) with Subdweller Machine Gun Last Messages --------------- Acquired Sub. Power Source. 9K-X5H(R) emerges from the Twisted Machinery. Assault Rifle destroyed. Subatomizers dissect the Sub. Monowheel. J7-C0O(R) destroyed. Switching to secondary target: 9K-X5H(R). NQ-VQ3(R) affixes Scrap Shield Fragment to Scrap Shield. NQ-VQ3(R) destroyed. Acquired 10 matter. Acquired Sub. Power Source. Dropped Wheel. Acquired Sub. Monowheel. Acquired derelict log, extracted data. World map updated: -9/Mines. I9-LLL(R) destroyed. Dropped Med. Storage Unit. FY-L84(R) misfires. Dropped Lgt. Armor Plating. Acquired Scrap Shield. Map ----- +----------------------------------------------------+ | ?????????????????????????????????????????????????? | | ?????????????????????????????????????????????????? | | ?????????????????????????????????????????????????? | | ?????????????????????????????????????????????????? | | ?????????????????????????????????????????????????? | | ?????????????????????????????????????????????????? | | ?????????????????????????????????????????????????? | | ?????????????????????????????????????????????????? | | ?????????????????????????????????????????????????? | | ?????????????????????????????????????????????????? | | ?????????????????????????????????????????????????? | | ?????????????????????????????????????????????????? | | ?????????????????????????????????????????????????? | | ?????????????????????##??????????????????????????? | | ?????????????????????# ??????????????????????????? | | ?????????????????????" #?????????????????????????? | | ??????????????????????" #????????????????????????? | | ????????????????????"## R????????????????????????? | | ???????????????????"""" ????????????????????????? | | ?????????????????###""" ##??????????????????????? | | ????????????????"#""""" #??????????????????????? | | ????????????????"" ##??##?????????????????? | | ????????????????????# ### ##????????????????? | | ?????????????????????# #????????????????? | | ?????????????????????##&!!=* # #???????????????? | | ??????????????????????#%!@!## ##?????????????????? | | ??????????????????????##[*!### #?????????????????? | | ???????????????????????# !### ##?????????????????? | | ???????????????????????# #?#"#??????????????????? | | ???????????????????????# ?# ####???????????????? | | ???????????????????????"" ?# ## ###?????????????? | | ?????????????????????? " #?# ###???????????? | | ????????????????????? # ###?## ## ###?????????? | | ????????????????????? ##????# ### #?????????? | | ???????????????????? ???????## #### #?????????? | | ????????????????????????????# ## ##?????????? | | ????????????????????????????## ## #?????????? | | ????????????????????????????# ## ##?????????? | | ????????????????????????????## """ #??????????? | | ??????????????????????????#### # #??????????? | | ??????????????????????????# ## # #####??????????? | | #???????????????###???????# #?????????????? | | " ##???????????## #??????## #?####????????? | | ?????????## ##???### " ### #????????? | | ? #?####??# #??## " " ##???????? | | ?#""" # ### #### ## #???????? | | ?" " # ## ## ##???????? | | ?# " # " ## ##?#??????? | | ????# ## ### """ ##????????? | | ?????????### #?#### ## """" #????????? | +----------------------------------------------------+ Best States ------------- Heat Dissipation 25 Energy Generation 14 Energy Capacity 160 Matter Stores 300 Matter Capacity 300 Sight Range 16 Terrain Scan Range 14 Terrain Scan Density 10 Armor Coverage 150 Evasion (%) 44 Item Schematics ----------------- None Robot Schematics ------------------ None Fabricated ------------ Nothing Alien Tech Used ----------------- None Achievements -------------- None Challenges ------------ None Game ------ Seed IonicRestorationChainsaw Manual? 0 Play Time 00:18:27 Cumulative 134.1 hours Start 2024.08.10 @ 22:25:50 End 2024.08.10 @ 22:40:21 Sessions 1 Manual Loads 0 Difficulty Rogue Special Mode None Game No. 131 Rogue 122 Adventurer 9 Explorer 0 Win Type - Total 0 Types 0/0/0/0/0/0/0/0/0 Lore% 37 Gallery% 61 Achievement% 48 Wizard Run 0 Options --------- Layout 1 ASCII 0 Keyboard 0 Movement Numpad Keybinds 0 Fullscreen 1 Font 24/Smallcaps Map View 50x35 Zoom Use 0% Tactical HUD 0 Map Filters NONE Filters NONE Steam 1 RUN: 30e46f0b-2d36-480d-b9e9-9e6873ec1279